2CCN - Level 2 Cost Centre Name,,9CCN - Level 9 Cost Centre Name,9CCC - Level 9 Cost Centre Code,9AN - Level 9 Account Name,9AC - Level 9 Account Code,Date posted,Date of transaction,Merchant Name,MerchantCity,Originating Account Name,Originating Account Number,MCC/SIC Code,MCC Description,Original Amount,Currency,Conversion Rate,Billed Amount,DebitCredit,ReferenceNbr,Statement Cycle,AccountName
Gloucester City Council,23UE,TIC STAMP SALES,LT102,POSTAGES,5400,27/07/2015,24/07/2015,ROYAL MAIL,EDINBURGH,REDACTED,471565******4015,9402,POSTAGE STAMPS,705.6,Pound Sterling (826),1,705.6,Debit,7.46786E+22,02/08/2015,GLOUCESTER CC
Gloucester City Council,23UE,MEET & GREET,FP309,ADVERTISING AND PUBLICITY,5702,31/07/2015,30/07/2015,WWW.COTTONPRINT.CO.UK,INTERNET,REDACTED,471565******4015,2741,MISCELLANEOUS PUBLISHING & PRINTING,18.61,Pound Sterling (826),1,18.61,Debit,7.46786E+22,02/08/2015,GLOUCESTER CC
Gloucester City Council,23UE,DIRECTOR SERV & NEIGHBOURHOODS,ME104,OTHER MINOR SUPPLIES SERVICES,5590,13/07/2015,10/07/2015,OLD CROWN,GLOUCESTER,REDACTED,471565******5551,5812,EATING PLACES  RESTAURANTS,73.87,Pound Sterling (826),1,73.87,Debit,7.45792E+22,02/08/2015,GLOUCESTER CC
Gloucester City Council,23UE,HOMELESSNESS PREVENTION,CH122,VOCATIONAL TRAINING,2970,24/07/2015,23/07/2015,WINCHESTER CITY COUNCI,WINCHESTER,REDACTED,471565******1443,9399,GOVERNMENT SERVICES NOT ELSEWHERE CLASSIFIED,99,Pound Sterling (826),1,99,Debit,7.47451E+22,02/08/2015,GLOUCESTER CC
Gloucester City Council,23UE,DOCKS COMPLEX - SERVICES,RB100,UNIFORMS,5201,07/07/2015,06/07/2015,SAFPRO INDUSTRIAL SUPPLY,GLOUCESTER,REDACTED,471565******8223,5085,INDUSTRIAL SUPPLIES NOT ELSEWHERE CLASSI,54,Pound Sterling (826),1,54,Debit,7.40853E+22,02/08/2015,GLOUCESTER CC
Gloucester City Council,23UE,DOCKS COMPLEX - SERVICES,RB100,OPERATIONAL EQUIPMENT <5000,5012,10/07/2015,09/07/2015,B & Q,GLOUCESTER GL,REDACTED,471565******8223,5211,LUMBER AND BUILDING MATERIALS STORES,55.5,Pound Sterling (826),1,55.5,Debit,7.45792E+22,02/08/2015,GLOUCESTER CC
Gloucester City Council,23UE,DOCKS COMPLEX - SERVICES,RB100,CLEANING MATERIALS,3600,10/07/2015,09/07/2015,WWW.NISBETS.COM,0845 1110281,REDACTED,471565******8223,5964,CATALOG MERCHANTS,15.57,Pound Sterling (826),1,15.57,Debit,7.45792E+22,02/08/2015,GLOUCESTER CC
Gloucester City Council,23UE,DOCKS COMPLEX - SERVICES,RB100,OPERATIONAL EQUIPMENT <5000,5012,29/07/2015,28/07/2015,B & Q,GLOUCESTER GL,REDACTED,471565******8223,5211,LUMBER AND BUILDING MATERIALS STORES,42.93,Pound Sterling (826),1,42.93,Debit,7.45792E+22,02/08/2015,GLOUCESTER CC
Gloucester City Council,23UE,HEAD OF NEIGHBOURHOOD SERVICES,GN100,OTHER MINOR SUPPLIES SERVICES,5590,22/07/2015,21/07/2015,GREYFRIARS LODGE CANTE,CANTERBURY,REDACTED,471565******1326,7011,LODGING  HOTELS  MOTELS  RESORTS,85,Pound Sterling (826),1,85,Debit,7.47451E+22,02/08/2015,GLOUCESTER CC
Gloucester City Council,23UE,COUNCIL STREETCARE TEAM,HI101,ADDITIONAL NON-TENDER ITEMS,6973,16/07/2015,15/07/2015,HOBBYCRAFT (INTERNET),NORTHAMPTON,REDACTED,471565******8476,5970,ARTIST SUPPLY STORES  CRAFT SHOPS,15,Pound Sterling (826),1,15,Debit,7.48305E+22,02/08/2015,GLOUCESTER CC
Gloucester City Council,23UE,HOUSING STRATEGY & ENABLING,CH110,CONFERENCE/MEETING EXPENSES,5510,28/07/2015,27/07/2015,TRAINLINE.COM,03332 022 222,REDACTED,471565******3663,4112,PASSENGER RAILWAYS,39.98,Pound Sterling (826),1,39.98,Debit,7.49989E+22,02/08/2015,GLOUCESTER CC
Gloucester City Council,23UE,FOLK MUSEUM,LM210,CATERING PROVISIONS -FOOD,5110,15/07/2015,14/07/2015,BOOKER LIMITED GLOUCESTER,GLOUCESTER,REDACTED,471565******9991,5811,CATERERS,98.52,Pound Sterling (826),1,98.52,Debit,7.44637E+22,02/08/2015,GLOUCESTER CC
Gloucester City Council,23UE,FOLK MUSEUM,LM210,CATERING PROVISIONS -FOOD,5110,15/07/2015,14/07/2015,BOOKER LIMITED GLOUCESTER,GLOUCESTER,REDACTED,471565******9991,5811,CATERERS,16.36,Pound Sterling (826),1,16.36,Debit,7.44637E+22,02/08/2015,GLOUCESTER CC
Gloucester City Council,23UE,FOLK MUSEUM,LM210,HOSPITALITY,5122,15/07/2015,14/07/2015,BOOKER LIMITED GLOUCESTER,GLOUCESTER,REDACTED,471565******9991,5811,CATERERS,33.48,Pound Sterling (826),1,33.48,Debit,7.44637E+22,02/08/2015,GLOUCESTER CC
Gloucester City Council,23UE,CITY MUSEUM CATERING,LM202,CATERING PROVISIONS -FOOD,5110,15/07/2015,14/07/2015,BOOKER LIMITED GLOUCESTER,GLOUCESTER,REDACTED,471565******9991,5811,CATERERS,22.68,Pound Sterling (826),1,22.68,Debit,7.44637E+22,02/08/2015,GLOUCESTER CC
Gloucester City Council,23UE,ARTS EDUCATIONAL PROMOTIONS,LA610,OPERATIONAL EQUIPMENT <5000,5012,16/07/2015,15/07/2015,FASTHOSTS INTERNET,3330142700,REDACTED,471565******9991,4816,COMPUTER NETWORK/INFORMATION SERVICES,19.2,Pound Sterling (826),1,19.2,Debit,7.48305E+22,02/08/2015,GLOUCESTER CC
Gloucester City Council,23UE,CITY MUSEUM CATERING,LM202,CATERING PROVISIONS -FOOD,5110,29/07/2015,28/07/2015,Amazon UK Marketplace,800-279-6620,REDACTED,471565******9991,5999,MISCELLANEOUS AND RETAIL STORES,20,Pound Sterling (826),1,20,Debit,7.43132E+22,02/08/2015,GLOUCESTER CC
Gloucester City Council,23UE,CITY MUSEUM AND ART GALLERY,LM200,EXHIBITS AND COLLECTIONS,5038,29/07/2015,28/07/2015,Amazon UK Retail,AMAZON.CO.UK,REDACTED,471565******9991,5969,ALL OTHER DIRECT MARKETERS,12.99,Pound Sterling (826),1,12.99,Debit,7.43132E+22,02/08/2015,GLOUCESTER CC
Gloucester City Council,23UE,CITY MUSEUM AND ART GALLERY,LM200,EXHIBITS AND COLLECTIONS,5038,29/07/2015,28/07/2015,Amazon UK Marketplace,800-279-6620,REDACTED,471565******9991,5999,MISCELLANEOUS AND RETAIL STORES,14.98,Pound Sterling (826),1,14.98,Debit,7.43132E+22,02/08/2015,GLOUCESTER CC
Gloucester City Council,23UE,FOLK MUSEUM,LM210,EVENTS,5952,29/07/2015,28/07/2015,Amazon UK Marketplace,800-279-6620,REDACTED,471565******9991,5999,MISCELLANEOUS AND RETAIL STORES,37.84,Pound Sterling (826),1,37.84,Debit,7.43132E+22,02/08/2015,GLOUCESTER CC
Gloucester City Council,23UE,GUILDHALL EVENTS,LA200,FEES FOR SERVICES RECEIVED,5350,13/07/2015,10/07/2015,MIPERMIT PARKING-DOM,INTERNET,REDACTED,471565******2470,7523,AUTOMOBILE PARKING LOTS AND GARAGES,20,Pound Sterling (826),1,20,Debit,7.47451E+22,02/08/2015,GLOUCESTER CC
Gloucester City Council,23UE,GUILDHALL BAR AND CAF�,LA210,CATERING PROVISIONS -FOOD,5110,13/07/2015,10/07/2015,ASDA SUPERSTORE,GLOUCESTER,REDACTED,471565******2470,5411,GROCERY STORES  SUPERMARKETS,45.2,Pound Sterling (826),1,45.2,Debit,7.46982E+22,02/08/2015,GLOUCESTER CC
Gloucester City Council,23UE,BLACKFRIARS CATERING,LA220,CATERING PROVISIONS -LIQUOR,5111,13/07/2015,10/07/2015,ALDI,GLOUCESTER,REDACTED,471565******2470,5411,GROCERY STORES  SUPERMARKETS,40.59,Pound Sterling (826),1,40.59,Debit,7.40195E+22,02/08/2015,GLOUCESTER CC
Gloucester City Council,23UE,GUILDHALL EVENTS,LA200,FEES FOR SERVICES RECEIVED,5350,13/07/2015,11/07/2015,MIPERMIT PARKING-DOM,INTERNET,REDACTED,471565******2470,7523,AUTOMOBILE PARKING LOTS AND GARAGES,40,Pound Sterling (826),1,40,Debit,7.47451E+22,02/08/2015,GLOUCESTER CC
Gloucester City Council,23UE,GUILDHALL EVENTS,LA200,FEES FOR SERVICES RECEIVED,5350,13/07/2015,11/07/2015,MIPERMIT PARKING-DOM,INTERNET,REDACTED,471565******2470,7523,AUTOMOBILE PARKING LOTS AND GARAGES,10,Pound Sterling (826),1,10,Debit,7.47451E+22,02/08/2015,GLOUCESTER CC
Gloucester City Council,23UE,GUILDHALL BAR AND CAF�,LA210,HIRE OF EQUIPMENT,5020,17/07/2015,16/07/2015,SAINSBURYS S/MKTS,GLOUCESTER 22,REDACTED,471565******2470,5411,GROCERY STORES  SUPERMARKETS,24.99,Pound Sterling (826),1,24.99,Debit,7.45792E+22,02/08/2015,GLOUCESTER CC
Gloucester City Council,23UE,GUILDHALL BAR AND CAF�,LA210,CATERING PROVISIONS -FOOD,5110,21/07/2015,17/07/2015,ASDA HOME SHOPPING,CARDS LTD,REDACTED,471565******2470,5411,GROCERY STORES  SUPERMARKETS,53.24,Pound Sterling (826),1,53.24,Debit,7.46972E+22,02/08/2015,GLOUCESTER CC
Gloucester City Council,23UE,BLACKFRIARS CATERING,LA220,CATERING PROVISIONS -LIQUOR,5111,22/07/2015,21/07/2015,ALDI,GLOUCESTER,REDACTED,471565******2470,5411,GROCERY STORES  SUPERMARKETS,10.71,Pound Sterling (826),1,10.71,Debit,7.40195E+22,02/08/2015,GLOUCESTER CC
Gloucester City Council,23UE,GUILDHALL BAR AND CAF�,LA210,CATERING PROVISIONS -FOOD,5110,28/07/2015,27/07/2015,ICELAND,GLOUCESTER,REDACTED,471565******2470,5411,GROCERY STORES  SUPERMARKETS,5.28,Pound Sterling (826),1,5.28,Debit,7.46982E+22,02/08/2015,GLOUCESTER CC
Gloucester City Council,23UE,BLACKFRIARS CATERING,LA220,CATERING PROVISIONS -LIQUOR,5111,29/07/2015,28/07/2015,ASDA SUPERSTORE,GLOUCESTER,REDACTED,471565******2470,5411,GROCERY STORES  SUPERMARKETS,20.13,Pound Sterling (826),1,20.13,Debit,7.46982E+22,02/08/2015,GLOUCESTER CC
Gloucester City Council,23UE,BLACKFRIARS CATERING,LA220,CATERING PROVISIONS -LIQUOR,5111,31/07/2015,30/07/2015,ASDA SUPERSTORE,GLOUCESTER,REDACTED,471565******2470,5411,GROCERY STORES  SUPERMARKETS,17.03,Pound Sterling (826),1,17.03,Debit,7.46982E+22,02/08/2015,GLOUCESTER CC
Gloucester City Council,23UE,ENVIRONMENTAL PLANNING,LM340,PUBLIC TRANSPORTATION,4061,06/07/2015,03/07/2015,THE TRAINLINE.COM,RAIL TICKETS,REDACTED,471565******4841,4112,PASSENGER RAILWAYS,8.21,Pound Sterling (826),1,8.21,Debit,7.49989E+22,02/08/2015,GLOUCESTER CC
Gloucester City Council,23UE,CREMATORIUM,HC200,MEMORIAL PLAQUES,5053,08/07/2015,07/07/2015,SCREWFIX DIRECT,YEOVIL,REDACTED,471565******4841,5211,LUMBER AND BUILDING MATERIALS STORES,230.16,Pound Sterling (826),1,230.16,Debit,7.45792E+22,02/08/2015,GLOUCESTER CC
Gloucester City Council,23UE,PLANNING POLICY,PT300,VOCATIONAL TRAINING,2970,13/07/2015,10/07/2015,THE TRAINLINE.COM,RAIL TICKETS,REDACTED,471565******4841,4112,PASSENGER RAILWAYS,35.19,Pound Sterling (826),1,35.19,Debit,7.49989E+22,02/08/2015,GLOUCESTER CC
Gloucester City Council,23UE,MEMBERS SUPPORT,RC300,PUBLIC TRANSPORTATION,4061,13/07/2015,11/07/2015,THE TRAINLINE.COM,RAIL TICKETS,REDACTED,471565******4841,4112,PASSENGER RAILWAYS,-17.9,Pound Sterling (826),1,-17.9,Credit,7.49989E+22,02/08/2015,GLOUCESTER CC
Gloucester City Council,23UE,CITY MUSEUM AND ART GALLERY,LM200,PUBLIC TRANSPORTATION,4061,14/07/2015,13/07/2015,THE TRAINLINE.COM,RAIL TICKETS,REDACTED,471565******4841,4112,PASSENGER RAILWAYS,123.32,Pound Sterling (826),1,123.32,Debit,7.49989E+22,02/08/2015,GLOUCESTER CC
Gloucester City Council,23UE,COUNCIL STREETCARE TEAM,HI101,ROUTINE R AND M - VEHICLES,4011,15/07/2015,13/07/2015,WWW.DVLA.GOV.UK,VEHICLE LICEN,REDACTED,471565******4841,9399,GOVERNMENT SERVICES NOT ELSEWHERE CLASSIFIED,227.5,Pound Sterling (826),1,227.5,Debit,7.45792E+22,02/08/2015,GLOUCESTER CC
Gloucester City Council,23UE,MEMBERS SUPPORT,RC300,PUBLIC TRANSPORTATION,4061,17/07/2015,16/07/2015,THE TRAINLINE.COM,RAIL TICKETS,REDACTED,471565******4841,4112,PASSENGER RAILWAYS,120.67,Pound Sterling (826),1,120.67,Debit,7.49989E+22,02/08/2015,GLOUCESTER CC
Gloucester City Council,23UE,GUILDHALL BAR AND CAF�,LA210,OPERATIONAL EQUIPMENT <5000,5012,03/07/2015,02/07/2015,IKEA,WEDNESBURY142,REDACTED,471565******7657,5719,MISCELLANEOUS HOUSE FURNISHING SPECIALITY STORES,70.75,Pound Sterling (826),1,70.75,Debit,7.44247E+22,02/08/2015,GLOUCESTER CC
Gloucester City Council,23UE,GUILDHALL EVENTS,LA200,FEES FOR SERVICES RECEIVED,5350,06/07/2015,03/07/2015,MIPERMIT PARKING-DOM,INTERNET,REDACTED,471565******7657,7523,AUTOMOBILE PARKING LOTS AND GARAGES,20,Pound Sterling (826),1,20,Debit,7.47451E+22,02/08/2015,GLOUCESTER CC
Gloucester City Council,23UE,GLOUCESTER GUILDHALL,LA100,OPERATIONAL EQUIPMENT <5000,5012,17/07/2015,16/07/2015,DUNELM (SOFT FURNISHIN,GLOUCESTER,REDACTED,471565******7657,5714,WINDOW COVERING  UPHOLSTERY AND DRAPERY STORES,83.91,Pound Sterling (826),1,83.91,Debit,7.46981E+22,02/08/2015,GLOUCESTER CC
Gloucester City Council,23UE,GLOUCESTER GUILDHALL,LA100,OPERATIONAL EQUIPMENT <5000,5012,17/07/2015,16/07/2015,DUNELM (SOFT FURNISHIN,GLOUCESTER,REDACTED,471565******7657,5714,WINDOW COVERING  UPHOLSTERY AND DRAPERY STORES,11.96,Pound Sterling (826),1,11.96,Debit,7.46981E+22,02/08/2015,GLOUCESTER CC
Gloucester City Council,23UE,GLOUCESTER GUILDHALL,LA100,OPERATIONAL EQUIPMENT <5000,5012,17/07/2015,16/07/2015,PAYPAL *TERRYSTEXTI,35314369001,REDACTED,471565******7657,5251,HARDWARE STORES,206.8,Pound Sterling (826),1,206.8,Debit,7.49989E+22,02/08/2015,GLOUCESTER CC
Gloucester City Council,23UE,GUILDHALL EVENTS,LA200,FEES FOR SERVICES RECEIVED,5350,20/07/2015,17/07/2015,MIPERMIT PARKING-DOM,INTERNET,REDACTED,471565******7657,7523,AUTOMOBILE PARKING LOTS AND GARAGES,20,Pound Sterling (826),1,20,Debit,7.47451E+22,02/08/2015,GLOUCESTER CC
Gloucester City Council,23UE,GUILDHALL EVENTS,LA200,FEES FOR SERVICES RECEIVED,5350,21/07/2015,20/07/2015,MIPERMIT PARKING-DOM,INTERNET,REDACTED,471565******7657,7523,AUTOMOBILE PARKING LOTS AND GARAGES,15,Pound Sterling (826),1,15,Debit,7.47451E+22,02/08/2015,GLOUCESTER CC
Gloucester City Council,23UE,GUILDHALL EVENTS,LA200,ADVERTISING AND PUBLICITY,5702,21/07/2015,20/07/2015,WWW.INSTANTPRINT.C,01709 382202,REDACTED,471565******7657,7338,QUICK-COPY AND REPRODUCTION SERVICES,21.99,Pound Sterling (826),1,21.99,Debit,7.45792E+22,02/08/2015,GLOUCESTER CC
Gloucester City Council,23UE,BLACKFRIARS,LA609,OPERATIONAL EQUIPMENT <5000,5012,22/07/2015,15/07/2015,B & Q,GLOUCESTER GL,REDACTED,471565******7657,5211,LUMBER AND BUILDING MATERIALS STORES,51.62,Pound Sterling (826),1,51.62,Debit,7.45792E+22,02/08/2015,GLOUCESTER CC
Gloucester City Council,23UE,GLOUCESTER GUILDHALL,LA100,VEHICLE LICENCES,4015,22/07/2015,21/07/2015,WWW.DVLA.GOV.UK,VEHICLE LICEN,REDACTED,471565******7657,9399,GOVERNMENT SERVICES NOT ELSEWHERE CLASSIFIED,147.5,Pound Sterling (826),1,147.5,Debit,7.45792E+22,02/08/2015,GLOUCESTER CC
Gloucester City Council,23UE,GUILDHALL DIGITAL CINEMA,LY154,CONTRACT PAYMENTS,0020,27/07/2015,23/07/2015,COMBINED PRECISION,PRESTON,REDACTED,471565******7657,5065,ELECTRICAL PARTS AND EQUIPMENT,192,Pound Sterling (826),1,192,Debit,7.48305E+22,02/08/2015,GLOUCESTER CC
Gloucester City Council,23UE,GUILDHALL CINEMA,LA202,ADVERTISING AND PUBLICITY,5702,27/07/2015,24/07/2015,WWW.INSTANTPRINT.C,01709 382202,REDACTED,471565******7657,7338,QUICK-COPY AND REPRODUCTION SERVICES,45.99,Pound Sterling (826),1,45.99,Debit,7.45792E+22,02/08/2015,GLOUCESTER CC
Gloucester City Council,23UE,GUILDHALL EVENTS,LA200,ADVERTISING AND PUBLICITY,5702,29/07/2015,28/07/2015,WWW.INSTANTPRINT.C,01709 382202,REDACTED,471565******7657,7338,QUICK-COPY AND REPRODUCTION SERVICES,34.99,Pound Sterling (826),1,34.99,Debit,7.45792E+22,02/08/2015,GLOUCESTER CC
Gloucester City Council,23UE,BLACKFRIARS,LA609,OPERATIONAL EQUIPMENT <5000,5012,30/07/2015,29/07/2015,WILKO RETAIL LIMIT,GLOUCESTER 14,REDACTED,471565******7657,5722,HOUSEHOLD APPLIANCE STORES,8,Pound Sterling (826),1,8,Debit,7.45792E+22,02/08/2015,GLOUCESTER CC
Gloucester City Council,23UE,BUSINESS TRANSFORMATION & TECH,RT700,COMPUTER CONSUMABLES,5422,07/07/2015,06/07/2015,PC WORLD,GLOUCESTER,REDACTED,471565******3318,5734,COMPUTER SOFTWARE STORES,23.98,Pound Sterling (826),1,23.98,Debit,7.46982E+22,02/08/2015,GLOUCESTER CC
Gloucester City Council,23UE,BUSINESS PLANNING & PERFORMANC,RL500,PUBLIC TRANSPORTATION,4061,13/07/2015,10/07/2015,TRAINLINE.COM,03332 022 222,REDACTED,471565******3318,4112,PASSENGER RAILWAYS,121.89,Pound Sterling (826),1,121.89,Debit,7.49989E+22,02/08/2015,GLOUCESTER CC
Gloucester City Council,23UE,BUSINESS TRANSFORMATION & TECH,RT700,INTERNET SERVICE PROVIDER FEES,5429,17/07/2015,16/07/2015,123-REG.CO.UK,8712309525,REDACTED,471565******3318,4816,COMPUTER NETWORK/INFORMATION SERVICES,20.94,Pound Sterling (826),1,20.94,Debit,7.40566E+22,02/08/2015,GLOUCESTER CC
Gloucester City Council,23UE,BUSINESS TRANSFORMATION & TECH,RT700,INTERNET SERVICE PROVIDER FEES,5429,20/07/2015,18/07/2015,123 REG R/T,8712309525,REDACTED,471565******3318,5968,CONTINUITY/SUBSCRIPTION MERCHANTS,8.38,Pound Sterling (826),1,8.38,Debit,7.40566E+22,02/08/2015,GLOUCESTER CC
Gloucester City Council,23UE,CLIENT REVS & BENS CONTRACT,RT240,COURT FEES,5358,03/07/2015,02/07/2015,HMCOURTS-SERVICE.G,1452420100,REDACTED,471565******5409,9222,FINES,4800,Pound Sterling (826),1,4800,Debit,7.45792E+22,02/08/2015,GLOUCESTER CC
Gloucester City Council,23UE,CLIENT REVS & BENS CONTRACT,RT240,COURT FEES,5358,03/07/2015,02/07/2015,HMCOURTS-SERVICE.G,1452420100,REDACTED,471565******5409,9222,FINES,1149,Pound Sterling (826),1,1149,Debit,7.45792E+22,02/08/2015,GLOUCESTER CC
Gloucester City Council,23UE,FINANCIAL SERVICES,RT200,PUBLIC TRANSPORTATION,4061,07/07/2015,06/07/2015,VIRGINTRAINS.CO.UK,03445 561 396,REDACTED,471565******5409,4112,PASSENGER RAILWAYS,151,Pound Sterling (826),1,151,Debit,7.49989E+22,02/08/2015,GLOUCESTER CC
Gloucester City Council,23UE,FINANCIAL SERVICES,RT200,PUBLIC TRANSPORTATION,4061,08/07/2015,06/07/2015,VIRGINTRAINS.CO.UK,03445 561 396,REDACTED,471565******5409,4112,PASSENGER RAILWAYS,-61,Pound Sterling (826),1,-61,Credit,7.49989E+22,02/08/2015,GLOUCESTER CC
Gloucester City Council,23UE,FINANCIAL SERVICES,RT200,PUBLIC TRANSPORTATION,4061,08/07/2015,06/07/2015,VIRGINTRAINS.CO.UK,03445 561 396,REDACTED,471565******5409,4112,PASSENGER RAILWAYS,-70,Pound Sterling (826),1,-70,Credit,7.49989E+22,02/08/2015,GLOUCESTER CC
Gloucester City Council,23UE,BUSINESS TRANSFORMATION & TECH,RT700,COMPUTER HARDWARE <5000,5420,15/07/2015,14/07/2015,CURRYS ONLINE,HEMEL HEMPSTE,REDACTED,471565******5409,5732,ELECTRONIC SALES,738.99,Pound Sterling (826),1,738.99,Debit,7.46982E+22,02/08/2015,GLOUCESTER CC
Gloucester City Council,23UE,BUSINESS TRANSFORMATION & TECH,RT700,COMPUTER HARDWARE <5000,5420,15/07/2015,14/07/2015,Amazon Svcs Europe SAR,AMAZON.CO.UK,REDACTED,471565******5409,5942,BOOK STORES,66.68,Pound Sterling (826),1,66.68,Debit,7.43132E+22,02/08/2015,GLOUCESTER CC
Gloucester City Council,23UE,BUSINESS TRANSFORMATION & TECH,RT700,COMPUTER HARDWARE <5000,5420,16/07/2015,15/07/2015,Amazon UK Marketplace,800-279-6620,REDACTED,471565******5409,5999,MISCELLANEOUS AND RETAIL STORES,10.45,Pound Sterling (826),1,10.45,Debit,7.43132E+22,02/08/2015,GLOUCESTER CC
Gloucester City Council,23UE,BUSINESS TRANSFORMATION & TECH,RT700,COMPUTER HARDWARE <5000,5420,16/07/2015,15/07/2015,Amazon Svcs Europe SAR,AMAZON.CO.UK,REDACTED,471565******5409,5942,BOOK STORES,337.99,Pound Sterling (826),1,337.99,Debit,7.43132E+22,02/08/2015,GLOUCESTER CC
Gloucester City Council,23UE,BUSINESS TRANSFORMATION & TECH,RT700,COMPUTER HARDWARE <5000,5420,16/07/2015,15/07/2015,Amazon Svcs Europe SAR,AMAZON.CO.UK,REDACTED,471565******5409,5942,BOOK STORES,39.99,Pound Sterling (826),1,39.99,Debit,7.43132E+22,02/08/2015,GLOUCESTER CC
Gloucester City Council,23UE,FINANCIAL SERVICES,RT200,VOCATIONAL TRAINING,2970,20/07/2015,17/07/2015,WWW.AAT-ORG.UK,LONDON EC1R,REDACTED,471565******5409,8931,ACCOUNTING  AUDITING AND BOOKKEEPING SERVICES,86,Pound Sterling (826),1,86,Debit,7.40853E+22,02/08/2015,GLOUCESTER CC
Gloucester City Council,23UE,CIVIC ADMIN AND HOSPITALITY,RC210,HIRE OF TAXIS,4053,24/07/2015,23/07/2015,Enterprise Rent A Car UK,Enterprise Re,REDACTED,471565******5409,3405,ENTERPRISE RENT-A-CAR,210,Pound Sterling (826),1,210,Debit,7.49293E+22,02/08/2015,GLOUCESTER CC
